fUST/lending_fUST_20241118
["ID","MTS","AMOUNT","RATE_DAILY","PERIOD"]
[342500642,1731935440812,-5614.04267072,0.00013698,2]
[342500644,1731935440822,-500.0,0.00013698,2]
[342500646,1731935440831,-603.64,0.00013698,2]
[342500648,1731935440841,-500.0,0.00013698,2]
[342500649,1731935440851,-1036.16,0.00013698,2]
[342500650,1731935440860,-500.0,0.00013698,2]
[342500651,1731935440870,-818.26,0.00013698,2]
[342500652,1731935440879,-500.0,0.00013698,2]
[342500653,1731935440890,-500.0,0.00013698,2]
[342500654,1731935440900,-500.0,0.00013698,2]
[342500655,1731935440910,-203.72,0.00013698,2]
[342500656,1731935440920,-500.0,0.00013698,2]
[342500657,1731935440930,-500.0,0.00013698,2]
[342500658,1731935440939,-2691.99022174,0.00013872,2]
[342500659,1731935440948,-1000.0,0.0001388,2]
[342500660,1731935440957,-228.72674084,0.00013972,2]
[342500661,1731935440966,-500.0,0.00013972,2]
[342500662,1731935440979,-500.0,0.00013972,2]
[342500663,1731935440989,-500.0,0.00013972,2]
[342500664,1731935440999,-500.0,0.00013972,2]
[342500665,1731935441009,-500.0,0.00013972,2]
[342500666,1731935441019,-500.0,0.00013972,2]
[342500667,1731935441029,-500.0,0.00013972,2]
[342500668,1731935441039,-500.0,0.00013972,2]
[342500669,1731935441049,-586.33,0.00013972,2]
[342500670,1731935441058,-500.0,0.00013972,2]
[342500671,1731935441067,-508.0,0.00013972,2]
[342500672,1731935441077,-627.80902817,0.00013972,2]
[342500673,1731935441088,-500.0,0.00013972,2]
[342500674,1731935441098,-778.93,0.00013972,2]
[342500675,1731935441107,-500.0,0.00013972,2]
[342500676,1731935441117,-1057.6,0.00013972,2]
[342500677,1731935441126,-264.07560105,0.00013972,2]
[342500678,1731935441140,-235.92439895,0.00013972,2]
[342500679,1731935441149,-500.0,0.00013972,2]
[342500680,1731935441159,-750.19,0.00013972,2]
[342500681,1731935441168,-500.0,0.00013972,2]
[342500682,1731935441178,-500.0,0.00013972,2]
[342500683,1731935441191,-669.98808035,0.00013972,2]
[342500684,1731935442102,-191.10191965,0.00013972,2]
[342500685,1731935442111,-1591.13,0.00013972,2]
[342500686,1731935442121,-580.07,0.00013972,2]
[342500687,1731935442130,-319.03328815,0.00013972,2]
[342500729,1731935443552,-500.0,0.00013698,2]
[342500731,1731935443561,-500.0,0.00013698,2]
[342500733,1731935443571,-180.96671185,0.00013972,2]
[342500735,1731935443581,-500.0,0.00013972,2]
[342500737,1731935443590,-514.85,0.00013972,2]
[342500739,1731935443600,-500.0,0.00013972,2]
[342500741,1731935443609,-1441.65161757,0.00013972,2]
[342500784,1731935443988,-894.34838243,0.00013972,2]
[342500786,1731935443997,-500.0,0.00013972,2]
[342500788,1731935444006,-500.0,0.00013972,2]
[342500790,1731935444015,-500.0,0.00013972,2]
[342500792,1731935444025,-500.0,0.00013972,2]
[342500794,1731935444034,-500.0,0.00013972,2]
[342500796,1731935444043,-500.0,0.00013972,2]
[342500798,1731935444052,-500.0,0.00013972,2]
[342500800,1731935444061,-500.0,0.00013972,2]
[342500802,1731935444071,-500.0,0.00013972,2]
[342500804,1731935444080,-500.0,0.00013972,2]
[342500807,1731935444089,-500.0,0.00013972,2]
[342500809,1731935444099,-222.9934375,0.00013972,2]
[342500811,1731935444108,-500.0,0.00013972,2]
[342500813,1731935444118,-500.0,0.00013972,2]
[342500815,1731935444128,-500.0,0.00013972,2]
[342500817,1731935444138,-500.0,0.00013972,2]
[342500819,1731935444147,-500.0,0.00013972,2]
[342500820,1731935444156,-500.0,0.00013972,2]
[342500821,1731935444165,-327.12,0.00013972,2]
[342500822,1731935444176,-183.46,0.00013972,2]
[342500823,1731935444187,-765.94,0.00013972,2]
[342500824,1731935444196,-650.48,0.00013972,2]
[342500825,1731935444205,-500.0,0.00013972,2]
[342500826,1731935444215,-500.0,0.00013972,2]
[342500827,1731935444228,-933.90818007,0.00013972,2]
[342500926,1731935446580,-500.0,0.00013698,2]
[342500928,1731935446591,-500.0,0.00013698,2]
[342500930,1731935446600,-702.11,0.00013698,2]
[342500933,1731935446610,-1322.11181993,0.00013972,2]
[342500935,1731935446619,-500.0,0.00013972,2]
[342500936,1731935446629,-500.0,0.00013972,2]
[342500938,1731935446638,-500.0,0.00013972,2]
[342500941,1731935446647,-0.77818007,0.00013972,2]
[342500984,1731935447054,-41.9574998,0.00013972,2]
[342501187,1731935476519,1000.0,0.00025,120]
[342501191,1731935773651,600.0,0.00014,10]
[342501192,1731935773678,828.0,0.00014,10]
[342501194,1731936150979,12795.52705587,0.00025,120]
[342501206,1731936427108,-218.96651844,0.00013598,2]
[342501207,1731936427130,-93.71962621,0.00013673,2]
[342501208,1731936428091,-406.28037379,0.00013673,2]
[342501209,1731936428112,-300.0,0.00013697,2]
[342501210,1731936428132,-300.0,0.00013697,2]
[342501211,1731936428153,-351.81352358,0.00013698,2]
[342501212,1731936428172,-500.0,0.00013698,2]
[342501213,1731936428194,-302.76516271,0.00013698,2]
[342501214,1731936428214,-500.0,0.00013698,2]
[342501215,1731936428235,-506.02025697,0.00013698,2]
[342501216,1731936428256,-500.0,0.00013698,2]
[342501217,1731936428278,-294.50710463,0.00013698,2]
[342501218,1731936428301,-500.0,0.00013698,2]
[342501219,1731936428323,-303.89678298,0.00013698,2]
[342501220,1731936428344,-500.0,0.00013698,2]
[342501221,1731936428369,-513.74291922,0.00013698,2]
[342501222,1731936428390,-586.57963879,0.00013698,2]
[342501223,1731936428410,-500.0,0.00013698,2]
[342501224,1731936428430,-505.12610231,0.00013698,2]
[342501225,1731936428450,-526.68622486,0.00013698,2]
[342501226,1731936428471,-639.4582706,0.00013698,2]
[342501227,1731936428492,-526.61056278,0.00013698,2]
[342501228,1731936428518,-500.0,0.00013698,2]
[342501229,1731936428545,-500.0,0.00013698,2]
[342501230,1731936428567,-582.98019363,0.00013698,2]
[342501231,1731936428589,-500.0,0.00013698,2]
[342501232,1731936428610,-502.83605438,0.00013698,2]
[342501233,1731936428631,-500.0,0.00013698,2]
[342501234,1731936428652,-500.0,0.00013698,2]
[342501235,1731936428672,-500.0,0.00013698,2]
[342501236,1731936428693,-505.55407753,0.00013698,2]
[342501237,1731936428714,-502.85801062,0.00013698,2]
[342501238,1731936428734,-500.0,0.00013698,2]
[342501239,1731936428755,-500.0,0.00013698,2]
[342501240,1731936428776,-500.0,0.00013698,2]
[342501241,1731936428799,-500.0,0.00013698,2]
[342501242,1731936428820,-400.1399312,0.00013698,2]
[342501243,1731936428841,-500.0,0.00013698,2]
[342501244,1731936428863,-500.0,0.00013698,2]
[342501245,1731936428884,-369.6395662,0.00013698,2]
[342501246,1731936436135,-674.94511561,0.00013598,2]
[342501247,1731936449090,-258.0436288,0.00013598,2]
[342501248,1731936452134,-357.95629223,0.00013598,2]
[342501249,1731936452156,-294.3604338,0.00013698,2]
[342501250,1731936452177,-506.35455362,0.00013698,2]
[342501251,1731936452197,-500.0,0.00013698,2]
[342501252,1731936452220,-445.14104041,0.00013698,2]
[342501257,1731936550109,-300.0,0.00013697,2]
[342501258,1731936550135,-54.85895959,0.00013698,2]
[342501259,1731936550158,-780.22,0.00013698,2]
[342501260,1731936550180,-265.29799227,0.00013698,2]
[342501261,1731936550215,-292.19724848,0.00013698,2]
[342501262,1731936550247,-207.80275152,0.00013698,2]
[342501263,1731936550269,-361.9352798,0.00013698,2]
[342501264,1731936550291,-500.0,0.00013698,2]
[342501265,1731936550312,-500.0,0.00013698,2]
[342501266,1731936550335,-500.0,0.00013698,2]
[342501267,1731936550357,-196.72756868,0.00013698,2]
[342501268,1731936550384,-57.38469014,0.00013698,2]
[342501269,1731936550409,-500.0,0.00013698,2]
[342501270,1731936550435,-219.82400758,0.00013698,2]
[342501271,1731936550457,-500.0,0.00013698,2]
[342501272,1731936550479,-502.32942552,0.00013698,2]
[342501273,1731936550500,-521.89410803,0.00013698,2]
[342501274,1731936550522,-500.0,0.00013698,2]
[342501275,1731936550546,-502.72105777,0.00013698,2]
[342501276,1731936550567,-500.0,0.00013698,2]
[342501277,1731936550589,-500.0,0.00013698,2]
[342501278,1731936550613,-500.0,0.00013698,2]
[342501279,1731936550635,-500.0,0.00013698,2]
[342501280,1731936550661,-573.57595953,0.00013698,2]
[342501281,1731936550683,-500.0,0.00013698,2]
[342501282,1731936550706,-500.0,0.00013698,2]
[342501283,1731936550728,-602.95126911,0.00013698,2]
[342501284,1731936550751,-516.2853663,0.00013698,2]
[342501285,1731936550772,-500.0,0.00013698,2]
[342501286,1731936550794,-500.0,0.00013698,2]
[342501287,1731936550817,-500.0,0.00013698,2]
[342501288,1731936550839,-505.66860195,0.00013698,2]
[342501289,1731936550861,-500.0,0.00013698,2]
[342501290,1731936550883,-335.60267093,0.00013698,2]
[342501291,1731936550907,-514.66052577,0.00013698,2]
[342501292,1731936550929,-500.0,0.00013698,2]
[342501293,1731936550951,-464.76162965,0.00013698,2]
[342501294,1731936550972,-500.0,0.00013698,2]
[342501295,1731936550995,-500.0,0.00013698,2]
[342501296,1731936551015,-524.46231481,0.00013698,2]
[342501297,1731936551036,-599.92,0.00013698,2]
[342501298,1731936551056,-500.0,0.00013698,2]
[342501299,1731936551078,-500.0,0.00013698,2]
[342501300,1731936551099,-500.0,0.00013698,2]
[342501301,1731936551120,-500.0,0.00013698,2]
[342501302,1731936551141,-500.0,0.00013698,2]
[342501303,1731936551165,-501.06823895,0.00013698,2]
[342501304,1731936551186,-500.0,0.00013698,2]
[342501305,1731936551208,-500.0,0.00013698,2]
[342501306,1731936551230,-500.0,0.00013698,2]
[342501307,1731936551252,-500.0,0.00013698,2]
[342501308,1731936551272,-500.0,0.00013698,2]
[342501309,1731936551293,-450.44112456,0.00013698,2]
[342501310,1731936551314,-500.0,0.00013698,2]
[342501311,1731936551335,-500.0,0.00013698,2]
[342501312,1731936551356,-500.0,0.00013698,2]
[342501313,1731936551377,-188.52881545,0.00013698,2]
[342501314,1731936551400,-502.43907703,0.00013698,2]
[342501315,1731936551420,-500.0,0.00013698,2]
[342501316,1731936551440,-500.0,0.00013698,2]
[342501317,1731936551461,-505.26573252,0.00013698,2]
[342501318,1731936551481,-500.0,0.00013698,2]
[342501319,1731936551502,-500.0,0.00013698,2]
[342501320,1731936551522,-500.0,0.00013698,2]
[342501321,1731936551546,-500.0,0.00013698,2]
[342501322,1731936551566,-500.0,0.00013698,2]
[342501323,1731936551587,-500.0,0.00013698,2]
[342501324,1731936551607,-500.0,0.00013698,2]
[342501325,1731936551630,-350.29,0.00013698,2]
[342501326,1731936551655,-500.0,0.00013698,2]
[342501327,1731936551676,-572.51,0.00013698,2]
[342501328,1731936551697,-298.22795768,0.00013698,2]
[342501329,1731936551719,-500.0,0.00013698,2]
[342501330,1731936551741,-500.0,0.00013698,2]
[342501331,1731936551984,-503.01942539,0.00013698,2]
[342501332,1731936552007,-533.4,0.00013698,2]
[342501333,1731936552028,-500.0,0.00013698,2]
[342501334,1731936552050,-500.0,0.00013698,2]
[342501335,1731936552070,-543.58534309,0.00013698,2]
[342501336,1731936552090,-500.0,0.00013698,2]
[342501337,1731936552111,-500.0,0.00013698,2]
[342501338,1731936552131,-500.0,0.00013698,2]
[342501339,1731936552155,-500.0,0.00013698,2]
[342501340,1731936552176,-500.0,0.00013698,2]
[342501341,1731936552196,-500.0,0.00013698,2]
[342501342,1731936552216,-534.23,0.00013698,2]
[342501343,1731936552236,-500.0,0.00013698,2]
[342501344,1731936552256,-308.9407756,0.00013698,2]
[342501345,1731936552276,-500.0,0.00013698,2]
[342501346,1731936552296,-500.0,0.00013698,2]
[342501347,1731936552316,-379.86850077,0.00013698,2]
[342501348,1731936552339,-500.0,0.00013698,2]
[342501349,1731936552359,-500.0,0.00013698,2]
[342501350,1731936552381,-500.0,0.00013698,2]
[342501351,1731936552406,-501.24388771,0.00013698,2]
[342501352,1731936552427,-500.0,0.00013698,2]
[342501353,1731936552448,-500.0,0.00013698,2]
[342501354,1731936552469,-520.63947016,0.00013698,2]
[342501355,1731936552489,-500.0,0.00013698,2]
[342501356,1731936552510,-500.0,0.00013698,2]
[342501357,1731936552530,-500.0,0.00013698,2]
[342501358,1731936552553,-500.0,0.00013698,2]
[342501359,1731936552574,-500.0,0.00013698,2]
[342501360,1731936552596,-500.0,0.00013698,2]
[342501361,1731936552618,-500.0,0.00013698,2]
[342501362,1731936552639,-500.0,0.00013698,2]
[342501363,1731936552663,-500.0,0.00013698,2]
[342501364,1731936552686,-500.0,0.00013698,2]
[342501365,1731936552708,-500.0,0.00013698,2]
[342501366,1731936552729,-500.0,0.00013698,2]
[342501367,1731936552749,-500.0,0.00013698,2]
[342501368,1731936552770,-500.0,0.00013698,2]
[342501369,1731936552791,-500.0,0.00013698,2]
[342501370,1731936552812,-500.0,0.00013698,2]
[342501371,1731936552833,-647.74288307,0.00013698,2]
[342501372,1731936552853,-500.0,0.00013698,2]
[342501373,1731936552874,-495.3880933,0.00013698,2]
[342501374,1731936552895,-500.0,0.00013698,2]
[342501375,1731936552915,-500.0,0.00013698,2]
[342501376,1731936552935,-500.0,0.00013698,2]
[342501377,1731936552956,-500.0,0.00013698,2]
[342501378,1731936552975,-500.0,0.00013698,2]
[342501379,1731936552995,-500.0,0.00013698,2]
[342501380,1731936553015,-500.0,0.00013698,2]
[342501381,1731936553035,-500.0,0.00013698,2]
[342501382,1731936553055,-618.84,0.00013698,2]
[342501383,1731936553075,-500.0,0.00013698,2]
[342501384,1731936553094,-500.0,0.00013698,2]
[342501385,1731936553115,-500.0,0.00013698,2]
[342501386,1731936553134,-500.0,0.00013698,2]
[342501387,1731936553156,-500.0,0.00013698,2]
[342501388,1731936553176,-2336.0,0.00013698,2]
[342501389,1731936553196,-137.42096004,0.00013698,2]
[342501447,1731936631931,-300.0,0.00013697,2]
[342501449,1731936631941,-300.0,0.00013697,2]
[342501452,1731936631950,-160.55994064,0.00013698,2]
[342501454,1731936631965,-73.98240841,0.00013698,2]
[342501456,1731936631974,-194.81759159,0.00013698,2]
[342501462,1731936632023,-167.76144837,0.00013698,2]
[342501464,1731936632032,-513.4,0.00013698,2]
[342501466,1731936632042,-217.73855162,0.00013698,2]
[342501548,1731936637859,-1129.57690706,0.00013598,2]
[342501549,1731936637868,-287.98157502,0.00013698,2]
[342501550,1731936637877,-500.0,0.00013698,2]
[342501551,1731936637887,-500.0,0.00013698,2]
[342501552,1731936637896,-500.0,0.00013698,2]
[342501553,1731936637905,-226.94508697,0.00013698,2]
[342501554,1731936637915,-500.0,0.00013698,2]
[342501555,1731936637924,-500.0,0.00013698,2]
[342501556,1731936637934,-500.0,0.00013698,2]
[342501557,1731936637943,-500.0,0.00013698,2]
[342501558,1731936637952,-500.0,0.00013698,2]
[342501559,1731936637963,-500.0,0.00013698,2]
[342501560,1731936637972,-500.0,0.00013698,2]
[342501561,1731936637981,-500.0,0.00013698,2]
[342501562,1731936637991,-531.76,0.00013698,2]
[342501563,1731936638001,-500.0,0.00013698,2]
[342501564,1731936638010,-500.0,0.00013698,2]
[342501565,1731936638019,-500.0,0.00013698,2]
[342501566,1731936638028,-500.0,0.00013698,2]
[342501567,1731936638036,-500.0,0.00013698,2]
[342501568,1731936638045,-500.0,0.00013698,2]
[342501569,1731936638055,-500.0,0.00013698,2]
[342501570,1731936638064,-500.0,0.00013698,2]
[342501571,1731936638073,-500.0,0.00013698,2]
[342501572,1731936638082,-1000.0,0.00013698,2]
[342501573,1731936638091,-500.0,0.00013698,2]
[342501574,1731936638100,-500.0,0.00013698,2]
[342501575,1731936638109,-503.52951432,0.00013698,2]
[342501576,1731936638119,-500.0,0.00013698,2]
[342501577,1731936638128,-500.0,0.00013698,2]
[342501578,1731936638137,-578.42,0.00013698,2]
[342501579,1731936638146,-500.0,0.00013698,2]
[342501580,1731936638155,-500.0,0.00013698,2]
[342501581,1731936638165,-500.0,0.00013698,2]
[342501582,1731936638174,-500.0,0.00013698,2]
[342501583,1731936638183,-362.77205056,0.00013698,2]
[342501584,1731936638192,-500.0,0.00013698,2]
[342501585,1731936638202,-500.0,0.00013698,2]
[342501586,1731936638211,-500.0,0.00013698,2]
[342501587,1731936638222,-500.0,0.00013698,2]
[342501588,1731936638231,-500.0,0.00013698,2]
[342501589,1731936638240,-500.0,0.00013698,2]
[342501590,1731936638249,-500.0,0.00013698,2]
[342501591,1731936638259,-500.0,0.00013698,2]
[342501592,1731936638268,-500.0,0.00013698,2]
[342501593,1731936638277,-500.0,0.00013698,2]
[342501594,1731936638286,-500.0,0.00013698,2]
[342501595,1731936638295,-418.99136399,0.00013698,2]
[342501596,1731936638304,-507.63425325,0.00013698,2]
[342501597,1731936638314,-500.0,0.00013698,2]
[342501598,1731936638323,-500.0,0.00013698,2]
[342501599,1731936638332,-500.0,0.00013698,2]
[342501600,1731936638341,-500.0,0.00013698,2]
[342501601,1731936638351,-513.46,0.00013698,2]
[342501602,1731936638360,-682.14,0.00013698,2]
[342501603,1731936638369,-500.0,0.00013698,2]
[342501604,1731936638378,-500.0,0.00013698,2]
[342501605,1731936638387,-500.0,0.00013698,2]
[342501606,1731936638397,-500.0,0.00013698,2]
[342501607,1731936638406,-500.0,0.00013698,2]
[342501608,1731936638415,-500.0,0.00013698,2]
[342501609,1731936638425,-500.0,0.00013698,2]
[342501610,1731936638434,-500.0,0.00013698,2]
[342501611,1731936638444,-500.0,0.00013698,2]
[342501612,1731936638453,-500.0,0.00013698,2]
[342501613,1731936638464,-500.0,0.00013698,2]
[342501614,1731936638473,-500.0,0.00013698,2]
[342501615,1731936638483,-500.0,0.00013698,2]
[342501616,1731936638492,-500.0,0.00013698,2]
[342501617,1731936638501,-500.0,0.00013698,2]
[342501618,1731936638511,-500.0,0.00013698,2]
[342501619,1731936638520,-609.3655384,0.00013698,2]
[342501620,1731936638529,-500.0,0.00013698,2]
[342501621,1731936638538,-500.0,0.00013698,2]
[342501622,1731936638547,-500.0,0.00013698,2]
[342501623,1731936638557,-200.37192082,0.00013698,2]
[342501624,1731936638571,-500.0,0.00013698,2]
[342501625,1731936638580,-500.0,0.00013698,2]
[342501626,1731936638590,-571.76366029,0.00013698,2]
[342501627,1731936638599,-1750.56,0.00013698,2]
[342501628,1731936638610,-500.0,0.00013698,2]
[342501629,1731936638620,-500.0,0.00013698,2]
[342501630,1731936638629,-500.0,0.00013698,2]
[342501631,1731936638642,-500.0,0.00013698,2]
[342501632,1731936638651,-500.0,0.00013698,2]
[342501633,1731936638660,-720.11,0.00013698,2]
[342501634,1731936638669,-500.0,0.00013698,2]
[342501635,1731936638678,-500.0,0.00013698,2]
[342501636,1731936638687,-520.19,0.00013698,2]
[342501637,1731936638696,-500.0,0.00013698,2]
[342501638,1731936638705,-500.0,0.00013698,2]
[342501639,1731936638715,-500.0,0.00013698,2]
[342501640,1731936638725,-500.0,0.00013698,2]
[342501641,1731936638734,-500.0,0.00013698,2]
[342501642,1731936638743,-500.0,0.00013698,2]
[342501643,1731936638753,-208.17277621,0.00013698,2]
[342501644,1731936638763,-500.0,0.00013698,2]
[342501645,1731936638774,-500.0,0.00013698,2]
[342501646,1731936638785,-500.0,0.00013698,2]
[342501647,1731936638795,-500.0,0.00013698,2]
[342501648,1731936638805,-500.0,0.00013698,2]
[342501649,1731936638815,-500.0,0.00013698,2]
[342501650,1731936638826,-500.0,0.00013698,2]
[342501651,1731936638837,-500.0,0.00013698,2]
[342501652,1731936638846,-500.0,0.00013698,2]
[342501653,1731936638861,-2376.78,0.00013698,2]
[342501654,1731936638870,-500.0,0.00013698,2]
[342501655,1731936638880,-500.0,0.00013698,2]
[342501656,1731936638888,-532.21448907,0.00013698,2]
[342501657,1731936638898,-4426.07,0.00013698,2]
[342501658,1731936638907,-715.71,0.00013698,2]
[342501659,1731936638916,-504.74226335,0.00013698,2]
[342501660,1731936638925,-617.97,0.00013698,2]
[342501661,1731936638935,-500.0,0.00013698,2]
[342501662,1731936638944,-854.36,0.00013698,2]
[342501663,1731936638954,-1590.27,0.00013698,2]
[342501664,1731936638965,-500.0,0.00013698,2]
[342501665,1731936638975,-500.0,0.00013698,2]
[342501666,1731936638984,-500.0,0.00013698,2]
[342501667,1731936638994,-500.0,0.00013698,2]
[342501668,1731936639003,-644.35,0.00013698,2]
[342501669,1731936639012,-500.0,0.00013698,2]
[342501670,1731936639021,-500.0,0.00013698,2]
[342501671,1731936639031,-500.0,0.00013698,2]
[342501672,1731936639040,-500.0,0.00013698,2]
[342501673,1731936639050,-500.0,0.00013698,2]
[342501674,1731936639059,-1861.82,0.00013698,2]
[342501675,1731936639069,-628.73,0.00013698,2]
[342501676,1731936639080,-500.0,0.00013698,2]
[342501677,1731936639090,-500.0,0.00013698,2]
[342501678,1731936639099,-7199.7,0.00013698,2]
[342501679,1731936639109,-500.0,0.00013698,2]
[342501680,1731936639118,-500.0,0.00013698,2]
[342501681,1731936639128,-500.0,0.00013698,2]
[342501682,1731936639138,-500.0,0.00013698,2]
[342501683,1731936639147,-500.0,0.00013698,2]
[342501684,1731936639157,-7661.39,0.00013698,2]
[342501685,1731936639167,-500.0,0.00013698,2]
[342501686,1731936639176,-500.0,0.00013698,2]
[342501687,1731936639185,-912.86,0.00013698,2]
[342501688,1731936639195,-500.0,0.00013698,2]
[342501689,1731936639204,-500.0,0.00013698,2]
[342501690,1731936639215,-500.0,0.00013698,2]
[342501691,1731936639224,-364.0,0.00013698,2]
[342501692,1731936639234,-500.0,0.00013698,2]
[342501693,1731936639243,-500.0,0.00013698,2]
[342501694,1731936639253,-1301.63,0.00013698,2]
[342501695,1731936639262,-500.0,0.00013698,2]
[342501696,1731936639271,-1210.35,0.00013698,2]
[342501697,1731936639280,-500.0,0.00013698,2]
[342501698,1731936639291,-500.0,0.00013698,2]
[342501699,1731936639301,-636.33,0.00013698,2]
[342501700,1731936639312,-548.65,0.00013698,2]
[342501701,1731936639322,-500.0,0.00013698,2]
[342501702,1731936639332,-500.0,0.00013698,2]
[342501703,1731936639342,-372.19097183,0.00013698,2]
[342501704,1731936639352,-2265.97,0.00013698,2]
[342501705,1731936639362,-500.0,0.00013698,2]
[342501706,1731936639371,-108.88605486,0.00013699,2]
[342501707,1731936639386,-4753.70572914,0.00013699,2]
[342501708,1731936639397,-575.625185,0.00013699,2]
[342501709,1731936639406,-1965.826055,0.00013699,2]
[342501710,1731936639415,-610.59867703,0.00013775,2]
[342501711,1731936639425,-500.0,0.00013775,2]
[342501712,1731936639434,-627.52698701,0.00013775,2]
[342501713,1731936639444,-201.55783583,0.00013775,2]
[342501714,1731936639462,-298.44216417,0.00013775,2]
[342501715,1731936639473,-500.0,0.00013775,2]
[342501716,1731936639482,-185.99958188,0.00013775,2]
[342501717,1731936639494,-314.00041812,0.00013775,2]
[342501718,1731936639504,-509.21105924,0.00013775,2]
[342501719,1731936639513,-500.0,0.00013775,2]
[342501720,1731936639523,-500.0,0.00013775,2]
[342501722,1731936639533,-500.0,0.00013775,2]
[342501723,1731936639542,-500.0,0.00013775,2]
[342501725,1731936639552,-500.0,0.00013775,2]
[342501727,1731936639563,-500.0,0.00013775,2]
[342501729,1731936639574,-7101.59696214,0.00013776,2]
[342501731,1731936639584,-500.0,0.0001387,2]
[342501733,1731936639593,-500.62,0.00013871,2]
[342501734,1731936639603,-500.0,0.00013871,2]
[342501735,1731936639613,-500.0,0.00013871,2]
[342501736,1731936639622,-659.04,0.00013871,2]
[342501737,1731936639632,-500.0,0.00013871,2]
[342501738,1731936639644,-221.51819692,0.00013871,2]
[342501743,1731936640162,-376.90058023,0.00013871,2]
[342501744,1731936640172,-500.0,0.00013871,2]
[342501745,1731936640181,-500.0,0.00013871,2]
[342501746,1731936640191,-500.0,0.00013871,2]
[342501747,1731936640200,-115.04328164,0.00013871,2]
[342501748,1731936640211,-384.95671836,0.00013871,2]
[342501749,1731936640222,-500.0,0.00013871,2]
[342501750,1731936640231,-2000.0,0.00013871,2]
[342501751,1731936640241,-500.0,0.00013871,2]
[342501752,1731936640250,-500.0,0.00013871,2]
[342501753,1731936640259,-1222.75,0.00013871,2]
[342501754,1731936640268,-1384.54,0.00013871,2]
[342501755,1731936640278,-599.24,0.00013871,2]
[342501756,1731936640287,-581.07409075,0.00013871,2]
[342501757,1731936640296,-500.0,0.00013871,2]
[342501758,1731936640306,-892.73,0.00013871,2]
[342501759,1731936640315,-508.50169507,0.00013871,2]
[342501760,1731936640324,-1043.25,0.00013871,2]
[342501761,1731936640333,-500.0,0.00013871,2]
[342501762,1731936640342,-1976.68,0.00013871,2]
[342501763,1731936640352,-500.0,0.00013871,2]
[342501764,1731936640361,-500.0,0.00013871,2]
[342501765,1731936640370,-641.19,0.00013871,2]
[342501766,1731936640380,-500.0,0.00013871,2]
[342501767,1731936640390,-7071.11205775,0.00013971,2]
[342501768,1731936640399,-500.0,0.00013972,2]
[342501769,1731936640409,-780.22,0.00013972,2]
[342501770,1731936640420,-500.0,0.00013972,2]
[342501771,1731936640430,-500.0,0.00013972,2]
[342501772,1731936640439,-500.0,0.00013972,2]
[342501773,1731936640449,-500.0,0.00013972,2]
[342501774,1731936640458,-500.0,0.00013972,2]
[342501775,1731936640469,-500.0,0.00013972,2]
[342501776,1731936640478,-500.0,0.00013972,2]
[342501777,1731936640488,-510.65189682,0.00013972,2]
[342501778,1731936640497,-500.0,0.00013972,2]
[342501779,1731936640507,-500.0,0.00013972,2]
[342501780,1731936640516,-500.0,0.00013972,2]